bitfinex-derivatives/quotes_ETHF0:USTF0_20260116
["timestamp","ask_amount","ask_price","bid_price","bid_amount"]
[1768559966157,0.15151,3301.1,3300.1,0.13260109]
[1768559966359,0.4297035,3301.0,3300.1,0.13260109]
[1768559966559,0.15151,3301.1,3300.1,0.13260109]
[1768559966761,0.42971179,3301.0,3300.1,0.13260109]
[1768559966960,0.15151,3301.1,3300.1,0.13260109]
[1768559967262,0.42971224,3301.0,3300.1,0.13260109]
[1768559967464,0.15151,3301.1,3300.1,0.13260109]
[1768559967665,0.42973824,3301.0,3300.1,0.13260109]
[1768559967855,0.15151,3301.1,3300.1,0.13260109]
[1768559968055,0.42973358,3301.0,3300.1,0.13260109]
[1768559968256,0.15151,3301.1,3300.1,0.13260109]
[1768559968455,0.42976438,3301.0,3300.1,0.13260109]
[1768559968660,0.15151,3301.1,3300.1,0.13260109]
[1768559968862,0.42976463,3301.0,3300.1,0.13260109]
[1768559969162,0.15151,3301.1,3300.1,0.13260109]
[1768559969362,0.42979478,3301.0,3300.1,0.13260109]
[1768559969563,0.15151,3301.1,3300.1,0.13260109]
[1768559969863,0.42984572,3301.0,3300.1,0.13260109]
[1768559970166,0.15151,3301.1,3300.1,0.13260109]
[1768559970352,0.42998088,3301.0,3300.1,0.13260109]
[1768559970556,0.42998088,3300.9,3300.1,0.13260109]
[1768559970865,0.15151,3301.1,3300.1,0.13260109]
[1768559971058,0.42998797,3301.0,3300.1,0.13260109]
[1768559971366,0.42998797,3300.9,3300.1,0.13260109]
[1768559971665,0.15151,3301.1,3300.1,0.13260109]
[1768559971865,0.43003132,3301.0,3300.1,0.13260109]
[1768559972065,0.43003132,3300.9,3300.1,0.13260109]
[1768559972268,0.15151,3301.1,3300.1,0.13260109]
[1768559972465,1.38900806,3301.0,3300.1,0.13260109]
[1768559972769,1.38894444,3300.9,3299.7,0.13853132]
[1768559972968,0.4300608,3300.8,3299.7,0.13853132]
[1768559973267,0.43006037,3300.7,3299.7,0.13853132]
[1768559973466,0.15151,3301.1,3299.7,0.13853132]
[1768559973659,1.38904362,3301.0,3299.7,0.13853132]
[1768559973858,1.38904362,3300.9,3299.7,0.13853132]
[1768559974064,1.38904362,3300.8,3299.7,0.13853132]
[1768559974365,1.38904362,3300.7,3299.7,0.13853132]
[1768559974565,1.38904362,3300.6,3299.7,0.13853132]
[1768559974765,0.43007623,3300.5,3299.7,0.13853132]
[1768559974966,0.00352933,3300.5,3299.7,0.13853132]
[1768559976167,0.00352933,3300.5,3299.8,0.00453898]
[1768559979366,0.00352933,3300.5,3299.3,0.13853132]
[1768559979565,0.00806831,3300.5,3299.3,0.13853132]
[1768559979966,0.42968997,3300.4,3299.2,0.79823419]
[1768559980173,1.38759195,3300.3,3299.2,0.47825706]
[1768559980474,0.42964097,3300.2,3299.2,0.47825706]
[1768559980670,0.15155,3300.3,3299.2,0.47825706]
[1768559980863,0.42943275,3300.2,3299.2,0.47825706]
[1768559981058,0.15155,3300.3,3299.2,0.47825706]
[1768559981269,0.42943206,3300.2,3299.2,0.47825706]
[1768559981470,0.15155,3300.3,3299.2,0.47825706]
[1768559981670,0.42927284,3300.2,3299.2,0.47825706]
[1768559981871,0.15155,3300.3,3299.2,0.47825706]
[1768559982175,0.42928013,3300.2,3299.2,0.47825706]
[1768559982364,0.15155,3300.3,3299.2,0.47825706]
[1768559982565,1.38587267,3300.2,3299.1,0.00249578]
[1768559982765,0.42909186,3300.1,3299.1,0.00249578]
[1768559982964,0.15155,3300.3,3299.1,0.00249578]
[1768559983169,1.3859269,3300.2,3299.1,0.00249578]
[1768559983360,0.15155,3300.2,3299.1,0.00249578]
[1768559983564,1.38542997,3300.1,3299.1,0.00249578]
[1768559983764,0.15155,3300.2,3299.1,0.00249578]
[1768559983974,1.38542819,3300.1,3299.1,0.00249578]
[1768559984168,0.15155,3300.2,3299.1,0.00249578]
[1768559984370,1.38511635,3300.1,3299.1,0.00249578]
[1768559984673,0.15155,3300.2,3299.1,0.00249578]
[1768559984874,1.38496566,3300.1,3299.1,0.00249578]
[1768559985066,0.15155,3300.2,3299.1,0.00249578]
[1768559985262,0.42879363,3300.1,3299.1,0.00249578]
[1768559985468,1.0090608,3300.2,3298.5,0.13853132]
[1768559985673,1.3844669,3300.1,3298.5,0.13853132]
[1768559985877,1.0090608,3300.2,3298.5,0.13853132]
[1768559986069,1.53601947,3300.1,3298.5,0.13853132]
[1768559986264,0.00806831,3300.5,3297.7,0.13853132]
[1768559986265,0.15158,3299.7,3297.7,0.13853132]
[1768559986475,0.1516,3299.3,3297.7,0.140655]
[1768559986970,0.15159,3299.5,3297.7,0.140655]
[1768559987273,0.1516,3299.3,3297.7,0.140655]
[1768559987475,0.00454594,3298.8,3297.7,0.140655]
[1768559988575,0.15164,3298.3,3297.3,0.13853132]
[1768559988780,3.032,3298.7,3297.3,0.13853132]
[1768559989579,3.032,3298.7,3297.3,0.14160359]
[1768559989877,0.00454594,3298.8,3297.3,0.14160359]
[1768559990180,0.00454594,3298.8,3297.5,0.13853132]
[1768559990974,0.15155,3300.3,3298.3,0.13853132]
[1768559991185,1.37930819,3300.2,3298.3,0.13853132]
[1768559991370,1.37930819,3300.1,3298.3,0.13853132]
[1768559991678,4.95155,3300.3,3298.3,0.13853132]
[1768559991877,1.37918957,3300.2,3298.3,0.13853132]
[1768559992085,0.15155,3300.3,3298.3,0.13853132]
[1768559993077,0.15155,3300.3,3298.7,0.13677182]
[1768559995480,0.8575108,3299.7,3298.0,0.13677182]
[1768559995781,1.0090708,3300.1,3298.0,0.13677182]
[1768559995985,1.37957061,3300.0,3298.0,0.13677182]
[1768559996284,1.0090708,3300.1,3298.0,0.13677182]
[1768559996472,1.3796745,3300.0,3298.0,0.13677182]
[1768559996674,1.0090708,3300.1,3298.0,0.13677182]
[1768559996875,1.37966458,3300.0,3298.0,0.13677182]
[1768559997169,1.0090708,3300.1,3298.0,0.13677182]
[1768559997380,1.37968388,3300.0,3298.0,0.13677182]
[1768559997575,0.95252594,3299.9,3298.0,0.13677182]
[1768559997777,1.0090708,3300.1,3298.0,0.13677182]
[1768559997978,1.37981631,3300.0,3298.0,0.13677182]
[1768559998181,0.9526081,3299.9,3298.0,0.13677182]
[1768559998381,1.0090708,3300.1,3298.0,0.13677182]
[1768559998580,1.5315695,3300.0,3298.0,0.13677182]
[1768559998774,1.3800095,3299.9,3298.0,0.13677182]
[1768559998978,0.15156,3300.0,3298.0,0.13677182]
[1768559999178,1.37998981,3299.9,3298.0,0.13677182]
[1768559999388,0.15156,3300.0,3298.0,0.13677182]
[1768559999684,1.38021383,3299.9,3298.0,0.13677182]
[1768559999871,0.15156,3300.0,3298.0,0.13677182]
[1768560000075,1.38021231,3299.9,3298.0,0.13677182]
[1768560000283,0.15156,3300.0,3298.0,0.13677182]
[1768560000482,1.37838316,3299.9,3298.0,0.13677182]
[1768560000686,0.15156,3300.0,3298.0,0.13677182]
[1768560000880,1.37840671,3299.9,3298.0,0.13677182]
[1768560001082,0.15156,3300.0,3298.0,0.13677182]
[1768560001284,1.37841119,3299.9,3298.0,0.13677182]
[1768560001476,1.37841119,3299.8,3298.0,0.13677182]
[1768560001673,0.15156,3300.0,3298.0,0.13677182]
[1768560001877,1.37875646,3299.9,3298.0,0.13677182]
[1768560002084,1.37875646,3299.8,3298.0,0.13677182]
[1768560002282,0.15156,3300.0,3298.0,0.13677182]
[1768560002484,1.37921692,3299.9,3298.0,0.13677182]
[1768560002785,1.37921692,3299.8,3298.0,0.13677182]
[1768560002985,0.8575108,3300.1,3298.0,0.13677182]
[1768560003287,1.0090908,3299.7,3298.0,0.13677182]
[1768560003484,1.37921083,3299.6,3298.0,0.13677182]
[1768560003787,1.37921083,3299.5,3298.0,0.13677182]
[1768560004089,1.0090908,3299.7,3298.0,0.13677182]
[1768560004275,1.37941349,3299.6,3298.0,0.13677182]
[1768560004589,0.95172302,3299.5,3298.0,0.13677182]
[1768560004778,0.15158,3299.7,3298.0,0.13677182]
[1768560004978,1.3796518,3299.6,3298.0,0.13677182]
[1768560005285,1.3796518,3299.5,3298.0,0.13677182]
[1768560005484,0.15158,3299.7,3298.0,0.13677182]
[1768560005686,1.37993561,3299.6,3298.0,0.13677182]
[1768560005884,1.37993561,3299.5,3298.0,0.13677182]
[1768560006082,0.15158,3299.7,3298.0,0.13677182]
[1768560006276,1.37993626,3299.6,3298.0,0.13677182]
[1768560006478,1.37993626,3299.5,3298.0,0.13677182]
[1768560006677,0.15158,3299.7,3298.0,0.13677182]
[1768560006878,1.38030023,3299.6,3298.0,0.13677182]
[1768560007074,1.38030023,3299.5,3298.0,0.13677182]
[1768560007275,0.95263081,3299.4,3298.0,0.13677182]
[1768560007577,0.15158,3299.7,3298.0,0.13677182]
[1768560007778,1.38074481,3299.6,3298.0,0.13677182]
[1768560007988,1.38074481,3299.5,3298.0,0.13677182]
[1768560008185,0.95263098,3299.4,3298.0,0.13677182]
[1768560008386,0.15158,3299.7,3298.0,0.13677182]
[1768560008588,1.38129482,3299.6,3298.0,0.13677182]
[1768560008787,1.38129482,3299.5,3298.0,0.13677182]
[1768560008993,1.38129482,3299.4,3298.0,0.13677182]
[1768560009197,0.15158,3299.7,3298.0,0.13677182]
[1768560009387,1.38176125,3299.6,3298.0,0.13677182]
[1768560009582,1.38176125,3299.5,3298.0,0.13677182]
[1768560009779,0.15158,3299.7,3298.0,0.13677182]
[1768560009980,1.38195105,3299.6,3298.0,0.13677182]
[1768560010282,1.38195105,3299.5,3298.0,0.13677182]
[1768560010482,0.15158,3299.7,3298.0,0.13677182]
[1768560010692,1.38224933,3299.6,3298.0,0.13677182]
[1768560010884,1.38224933,3299.5,3298.0,0.13677182]
[1768560011089,0.15158,3299.7,3298.0,0.13677182]
[1768560011290,1.38224933,3299.6,3298.0,0.13677182]
[1768560011490,1.38224933,3299.5,3298.0,0.13677182]
[1768560011691,0.15158,3299.7,3298.0,0.13677182]
[1768560011893,1.38258272,3299.6,3298.0,0.13677182]
[1768560012195,1.38258272,3299.5,3298.0,0.13677182]
[1768560012494,0.15158,3299.7,3298.0,0.13677182]
[1768560012686,1.38292771,3299.6,3298.0,0.13677182]
[1768560012880,1.38292771,3299.5,3298.0,0.13677182]
[1768560013085,4.86755,3300.3,3298.3,0.13677182]
[1768560013287,1.38294895,3300.2,3298.3,0.13677182]
[1768560013588,1.38294895,3300.1,3298.3,0.13677182]
[1768560013781,1.38294895,3300.0,3298.3,0.13677182]
[1768560013988,1.38294895,3299.9,3298.3,0.13677182]
[1768560014186,1.38302872,3299.8,3298.3,0.13677182]
[1768560014494,1.38302872,3299.7,3298.3,0.13677182]
[1768560014696,1.38302872,3299.6,3298.3,0.13677182]
[1768560014986,0.42889314,3299.5,3298.3,0.13677182]
[1768560015191,0.15155,3300.3,3298.3,0.13677182]
[1768560015391,1.38363551,3300.2,3298.3,0.13677182]
[1768560015591,1.38363551,3300.1,3298.3,0.13677182]
[1768560015896,1.38363551,3300.0,3298.3,0.13677182]
[1768560016091,1.38363551,3299.9,3298.3,0.13677182]
[1768560016391,1.38363551,3299.8,3298.3,0.13677182]
[1768560016589,1.38363551,3299.7,3298.3,0.13677182]
[1768560016778,1.38363551,3299.6,3298.3,0.13677182]
[1768560016985,0.15155,3300.3,3298.3,0.13677182]
[1768560017187,1.38369032,3300.2,3298.3,0.13677182]
[1768560017387,1.38369032,3300.1,3298.3,0.13677182]
[1768560017588,1.38369032,3300.0,3298.3,0.13677182]
[1768560017787,1.38369032,3299.9,3298.3,0.13677182]
[1768560017993,1.38369032,3299.8,3298.3,0.13677182]
[1768560018298,1.38369032,3299.7,3298.3,0.13677182]
[1768560018486,1.38369032,3299.6,3298.3,0.13677182]
[1768560018687,0.42903844,3299.5,3298.3,0.13677182]
[1768560018886,0.15155,3300.2,3298.3,0.13677182]
[1768560019097,1.38387198,3300.1,3298.3,0.13677182]
[1768560019297,1.38387198,3300.0,3298.3,0.13677182]
[1768560019500,1.38387198,3299.9,3298.3,0.13677182]
[1768560019689,1.38387198,3299.8,3298.3,0.13677182]
[1768560019889,1.38387198,3299.7,3298.3,0.13677182]
[1768560020096,1.38387198,3299.6,3298.3,0.13677182]
[1768560020396,1.38387198,3299.5,3298.3,0.13677182]
[1768560020698,0.15155,3300.2,3298.3,0.13677182]
[1768560020896,1.38518531,3300.1,3298.3,0.13677182]
[1768560021097,1.38518531,3300.0,3298.3,0.13677182]
[1768560021291,1.38518531,3299.9,3298.3,0.13677182]
[1768560021489,1.38518531,3299.8,3298.3,0.13677182]
[1768560021691,1.38518531,3299.7,3298.3,0.13677182]
[1768560021991,1.38518531,3299.6,3298.3,0.13677182]
[1768560022192,1.38518531,3299.5,3298.3,0.13677182]
[1768560022393,0.15155,3300.2,3298.3,0.13677182]
[1768560022699,0.95576651,3300.1,3298.3,0.13677182]
[1768560022889,1.38530494,3300.0,3298.3,0.13677182]
[1768560023090,1.38530494,3299.9,3298.3,0.13677182]
[1768560023297,1.38530494,3299.8,3298.9,0.13348521]
[1768560023498,1.38530494,3299.7,3298.9,0.13348521]
[1768560023792,0.15155,3300.2,3299.2,0.13348521]
[1768560023994,1.38560552,3300.1,3299.2,0.13348521]
[1768560024299,1.38560552,3300.0,3299.2,0.13348521]
[1768560024491,1.38560552,3299.9,3299.2,0.13348521]
[1768560024690,1.38560552,3299.8,3299.2,0.13348521]
[1768560024891,0.42962884,3299.7,3299.2,0.13348521]
[1768560025090,0.15155,3300.2,3299.2,0.13348521]
[1768560025292,1.38549779,3300.1,3299.2,0.13348521]
[1768560025592,1.38549779,3300.1,3298.6,0.85804815]
[1768560025593,1.38549779,3300.0,3298.8,0.13348521]
[1768560025790,1.38549779,3299.9,3298.8,0.13348521]
[1768560026001,1.38549779,3299.8,3298.8,0.13348521]
[1768560026296,0.42962764,3299.7,3298.8,0.13348521]
[1768560026503,0.85804815,3300.1,3298.8,0.13348521]
[1768560026702,1.38540104,3300.0,3298.8,0.13348521]
[1768560026904,1.38540104,3299.9,3298.9,0.13348521]
[1768560027201,1.38540104,3299.8,3298.9,0.13348521]
[1768560027403,0.15155,3300.2,3298.9,0.13348521]
[1768560027604,1.38191084,3300.1,3298.9,0.13348521]
[1768560027801,1.38191084,3300.0,3298.9,0.13348521]
[1768560028102,1.38191084,3299.9,3298.9,0.13348521]
[1768560028402,1.38191084,3299.8,3298.9,0.13348521]
[1768560028601,0.15155,3300.2,3298.9,0.13348521]
[1768560028802,1.38153514,3300.1,3298.9,0.13348521]
[1768560029102,1.38153514,3300.0,3298.9,0.13348521]
[1768560029291,1.38153514,3299.9,3298.9,0.13348521]
[1768560029495,0.42606923,3299.8,3298.9,0.13348521]
[1768560029696,0.15155,3300.2,3298.9,0.13348521]
[1768560029990,1.38142839,3300.1,3298.9,0.13348521]
[1768560030193,1.38142839,3300.0,3298.9,0.13348521]
[1768560030493,1.38142839,3299.9,3298.9,0.13348521]
[1768560030804,0.4260458,3299.8,3298.9,0.13348521]
[1768560031105,0.15155,3300.2,3298.9,0.13348521]
[1768560031296,0.85804815,3299.7,3298.4,0.14127964]
[1768560032305,0.85804815,3300.0,3298.4,0.14127964]
[1768560032603,1.38123932,3299.9,3298.4,0.14127964]
[1768560032796,1.38123932,3299.8,3298.4,0.14127964]
[1768560032995,0.42598191,3299.7,3298.4,0.14127964]
[1768560033204,0.85804815,3300.0,3298.4,0.14127964]
[1768560033405,1.38126882,3299.9,3298.4,0.14127964]
[1768560033606,0.42600647,3299.8,3298.4,0.14127964]
[1768560033806,0.42600647,3299.7,3298.4,0.14127964]
[1768560034105,0.85804815,3300.0,3298.5,0.85804815]
[1768560034305,1.38135842,3299.9,3298.6,0.14127964]
[1768560034507,1.38135842,3299.8,3298.6,0.14127964]
[1768560034710,1.38135842,3299.7,3298.6,0.14127964]
[1768560034911,0.85804815,3300.0,3298.6,0.14127964]
[1768560035101,1.3813999,3299.9,3298.6,0.14127964]
[1768560035302,1.3813999,3299.8,3298.6,0.14127964]
[1768560035504,1.3813999,3299.7,3298.6,0.14127964]
[1768560035810,0.85804815,3300.0,3298.6,0.14127964]
[1768560036014,1.38151372,3299.9,3298.6,0.14127964]
[1768560036212,1.38151372,3299.8,3298.6,0.14127964]
[1768560036510,1.38151372,3299.7,3298.6,0.14127964]
[1768560036813,0.85804815,3300.0,3298.6,0.14127964]
[1768560037112,1.38164828,3299.9,3298.6,0.14127964]
[1768560037305,1.38164828,3299.8,3298.6,0.14127964]
[1768560037506,1.38164828,3299.7,3298.6,0.14127964]
[1768560037707,0.85804815,3300.0,3298.6,0.14127964]
[1768560038008,1.38180944,3299.9,3298.6,0.14127964]
[1768560038206,1.38180944,3299.8,3298.6,0.14127964]
[1768560038417,1.38180944,3299.7,3298.6,0.14127964]
[1768560038712,0.42617356,3299.6,3298.6,0.14127964]
[1768560038914,0.85804815,3300.0,3298.6,0.14127964]
[1768560039118,1.38197474,3299.9,3298.6,0.14127964]
[1768560039413,1.38197474,3299.8,3298.6,0.14127964]
[1768560039614,1.38197474,3299.7,3298.6,0.14127964]
[1768560039812,0.42622477,3299.6,3298.6,0.14127964]
[1768560040115,0.85804815,3300.0,3298.6,0.14127964]
[1768560040318,1.38227921,3299.9,3298.4,0.14127964]
[1768560040614,1.38227921,3299.8,3298.6,0.14127964]
[1768560040810,1.38227921,3299.7,3298.6,0.14127964]
[1768560041015,1.38227921,3299.6,3298.6,0.14127964]
[1768560041216,1.38227921,3299.5,3298.6,0.14127964]
[1768560041419,1.38227921,3299.4,3298.6,0.14127964]
[1768560041609,1.00961815,3300.0,3298.6,0.14127964]
[1768560041810,1.38215413,3299.9,3298.6,0.14127964]
[1768560042017,1.38215413,3299.8,3298.6,0.14127964]
[1768560042220,1.38215413,3299.7,3298.6,0.14127964]
[1768560042421,1.38215413,3299.6,3298.6,0.14127964]
[1768560042611,1.38215413,3299.5,3298.6,0.14127964]
[1768560042813,1.38215413,3299.4,3298.6,0.14127964]
[1768560043016,1.00961815,3300.0,3298.6,0.14127964]
[1768560043310,1.38219718,3299.9,3298.6,0.14127964]
[1768560043520,1.38219718,3299.8,3298.6,0.14127964]
[1768560043820,1.38219718,3299.7,3298.6,0.14127964]
[1768560044020,1.38219718,3299.6,3298.6,0.14127964]
[1768560044222,1.38219718,3299.5,3298.6,0.14127964]
[1768560044520,0.42629313,3299.4,3298.6,0.14127964]
[1768560044726,1.00961815,3300.0,3298.6,0.14127964]
[1768560044924,1.38229224,3299.9,3298.6,0.14127964]
[1768560045116,1.38229224,3299.8,3298.6,0.14127964]
[1768560045318,2.24034039,3299.7,3298.1,0.99932779]
[1768560045613,1.38229224,3299.6,3298.2,0.14127964]
[1768560045927,1.38229224,3299.5,3298.2,0.14127964]
[1768560046227,1.38229224,3299.4,3298.2,0.14127964]
[1768560046429,1.38229224,3299.3,3298.2,0.14127964]
[1768560046629,0.85804815,3299.7,3298.2,0.14127964]
[1768560046829,1.38207816,3299.6,3298.2,0.14127964]
[1768560047128,1.38207816,3299.5,3298.2,0.14127964]
[1768560047331,1.38207816,3299.4,3298.2,0.14127964]
[1768560047628,0.42624547,3299.3,3298.2,0.14127964]
[1768560047828,0.85804815,3299.7,3298.2,0.14127964]
[1768560048024,1.38199762,3299.6,3298.4,0.14127964]
[1768560048331,1.38199762,3299.5,3298.7,0.14127964]
[1768560048523,0.42622104,3299.4,3298.7,0.14127964]
[1768560048723,0.15157,3299.8,3298.7,0.14127964]
[1768560048927,1.3819645,3299.7,3298.7,0.14127964]
[1768560049226,1.3819645,3299.6,3298.7,0.14127964]
[1768560049428,1.3819645,3299.5,3298.7,0.14127964]
[1768560049627,0.42621486,3299.4,3298.7,0.14127964]
[1768560049826,0.15157,3299.8,3298.7,0.14127964]
[1768560050123,1.38195373,3299.7,3298.7,0.14127964]
[1768560050326,1.38195373,3299.6,3298.7,0.14127964]
[1768560050621,1.38195373,3299.5,3298.7,0.14127964]
[1768560050826,0.42621095,3299.4,3298.7,0.14127964]
[1768560051028,0.15157,3299.8,3298.7,0.14127964]
[1768560051227,1.38192922,3299.7,3298.7,0.14127964]
[1768560051422,1.38192922,3299.6,3298.7,0.14127964]
[1768560051628,1.38192922,3299.5,3298.7,0.14127964]
[1768560051826,0.4262035,3299.4,3298.7,0.14127964]
[1768560052029,0.15157,3299.8,3298.7,0.14127964]
[1768560052230,1.38192042,3299.7,3298.7,0.14127964]
[1768560052426,1.38192042,3299.6,3298.7,0.14127964]
[1768560052636,1.38192042,3299.5,3298.7,0.14127964]
[1768560052834,0.4262009,3299.4,3298.7,0.14127964]
[1768560053130,0.15157,3299.8,3298.7,0.14127964]
[1768560053331,1.38188356,3299.7,3298.7,0.14127964]
[1768560053531,1.38188356,3299.6,3298.7,0.14127964]
[1768560053733,1.38188356,3299.5,3298.7,0.14127964]
[1768560053931,0.42619485,3299.4,3298.7,0.14127964]
[1768560054134,0.15157,3299.8,3298.7,0.14127964]
[1768560054332,1.38189737,3299.7,3298.7,0.14127964]
[1768560054534,1.38189737,3299.6,3298.7,0.14127964]
[1768560054734,1.38189737,3299.5,3298.7,0.14127964]
[1768560054935,0.15157,3299.8,3298.7,0.14127964]
[1768560055235,1.38192252,3299.7,3298.7,0.14127964]
[1768560055430,1.68752933,3300.5,3298.8,0.13529638]
[1768560055431,1.38192252,3299.6,3298.8,0.13529638]
[1768560055638,0.15155,3300.4,3299.1,0.13529638]
[1768560055838,1.38211507,3300.3,3299.1,0.13529638]
[1768560056030,1.38211507,3300.2,3299.1,0.13529638]
[1768560056236,0.85804815,3300.0,3298.7,0.13529638]
[1768560056537,1.38211507,3299.9,3298.7,0.13529638]
[1768560056737,1.38211507,3299.8,3298.7,0.13529638]
[1768560056925,1.38211507,3299.7,3298.7,0.13529638]
[1768560057130,0.85804815,3300.0,3298.7,0.13529638]
[1768560057436,1.38216995,3299.9,3298.7,0.13529638]
[1768560057636,1.38216995,3299.8,3298.7,0.13529638]
[1768560057837,1.38216995,3299.7,3298.7,0.13529638]
[1768560058038,0.85804815,3300.0,3298.7,0.13529638]
[1768560058229,1.38218374,3299.9,3298.7,0.13529638]
[1768560058425,1.38218374,3299.8,3298.7,0.13529638]
[1768560058625,1.38218374,3299.7,3298.7,0.13529638]
[1768560058830,0.85804815,3300.0,3298.7,0.13529638]
[1768560059027,1.38222681,3299.9,3298.7,0.13529638]
[1768560059226,1.38222681,3299.8,3298.7,0.13529638]
[1768560059530,1.38222681,3299.7,3298.7,0.13529638]
[1768560059841,1.00959815,3300.3,3298.7,0.13529638]
[1768560060040,1.38227483,3300.2,3298.7,0.13529638]
[1768560060241,1.38227483,3300.1,3298.7,0.13529638]
[1768560060444,1.38227483,3300.0,3298.7,0.13529638]
[1768560060735,1.38227483,3299.9,3298.7,0.99334453]
[1768560060937,1.38227483,3299.8,3298.8,0.13529638]
[1768560061143,1.38227483,3299.7,3298.8,0.13529638]
[1768560061338,1.00959815,3300.3,3298.8,0.13529638]
[1768560061541,1.38247874,3300.2,3298.8,0.13529638]
[1768560061838,1.38247874,3300.1,3298.8,0.13529638]
[1768560062038,1.38247874,3300.0,3298.8,0.13529638]
[1768560062243,1.38247874,3299.9,3298.8,0.13529638]
[1768560062445,1.38247874,3299.8,3298.8,0.13529638]
[1768560062638,1.38247874,3299.7,3298.8,0.13529638]
[1768560062839,1.00959815,3300.3,3298.8,0.13529638]
[1768560063047,1.38245705,3300.2,3298.8,0.13529638]
[1768560063247,1.38245705,3300.1,3298.8,0.13529638]
[1768560063544,1.38245705,3300.0,3298.8,0.13529638]
[1768560063845,1.38245705,3299.9,3298.8,0.13529638]
[1768560064045,1.38245705,3299.8,3298.8,0.13529638]
[1768560064239,1.38245705,3299.7,3298.8,0.13529638]
[1768560064438,0.85804815,3300.2,3298.8,0.13529638]
[1768560064641,1.38241532,3300.1,3298.8,0.13529638]
[1768560064839,1.38241532,3300.0,3298.9,0.13529638]
[1768560065039,1.38241532,3299.9,3298.9,0.13529638]
[1768560065240,1.38241532,3299.8,3298.9,0.13529638]
[1768560065440,1.00959815,3300.3,3298.9,0.13529638]
[1768560065642,1.38240575,3300.2,3298.9,0.13529638]
[1768560065934,1.38240575,3300.1,3298.9,0.13529638]
[1768560066138,1.38240575,3300.0,3298.9,0.13529638]
[1768560066339,1.38240575,3299.9,3298.9,0.13529638]
[1768560066541,1.38240575,3299.8,3298.9,0.13529638]
[1768560066745,1.00959815,3300.3,3298.9,0.13529638]
[1768560066940,1.38234085,3300.2,3298.9,0.13529638]
[1768560067141,1.38234085,3300.1,3298.9,0.13529638]
[1768560067340,1.38234085,3300.0,3299.0,0.13529638]
[1768560067551,1.38234085,3299.9,3299.0,0.13529638]
[1768560067740,0.42629949,3299.8,3299.0,0.13529638]
[1768560067940,0.15155,3300.3,3299.0,0.13529638]
[1768560068142,1.38226019,3300.2,3299.0,0.13529638]
[1768560068436,1.38226019,3300.1,3299.0,0.13529638]
[1768560068749,1.38226019,3300.0,3299.0,0.13529638]
[1768560068949,1.38226019,3299.9,3299.0,0.13529638]
[1768560069246,0.15155,3300.3,3299.0,0.13529638]
[1768560069450,1.38205958,3300.2,3299.0,0.13529638]
[1768560069650,1.38205958,3300.1,3299.0,0.13529638]
[1768560069842,1.38205958,3300.0,3299.0,0.13529638]
[1768560070149,1.38205958,3299.9,3299.0,0.13529638]
[1768560070345,0.15155,3300.3,3299.0,0.13529638]
[1768560070544,1.38196698,3300.2,3299.0,0.13529638]
[1768560070745,1.38196698,3300.1,3299.0,0.13529638]
[1768560070949,1.38196698,3300.0,3299.0,0.13529638]
[1768560071247,1.38196698,3299.9,3299.0,0.13529638]
[1768560071450,0.15155,3300.3,3299.0,0.13529638]
[1768560071651,1.38189269,3300.2,3299.0,0.13529638]
[1768560071950,1.38189269,3300.1,3299.3,0.13529638]
[1768560072250,0.00352933,3300.5,3299.6,0.13529638]
[1768560072443,1.38173745,3300.4,3299.6,0.13529638]
[1768560072643,0.42615442,3300.3,3299.6,0.13529638]
[1768560072845,0.00352933,3300.5,3299.6,0.13529638]
[1768560073045,1.38175956,3300.4,3299.6,0.13529638]
[1768560073349,0.00352933,3300.5,3299.6,0.13529638]
[1768560073547,1.38137498,3300.4,3299.6,0.13529638]
[1768560073853,0.00352933,3300.5,3299.6,0.13529638]
[1768560074042,1.38137652,3300.4,3299.6,0.13529638]
[1768560074238,0.00352933,3300.5,3299.6,0.13529638]
[1768560074548,0.00352933,3300.5,3299.8,0.85804815]
[1768560074746,0.15151,3301.2,3299.9,0.13529638]
[1768560074947,1.38127633,3301.1,3299.9,0.13529638]
[1768560075143,1.38127633,3301.0,3299.9,0.13529638]
[1768560075344,1.38127633,3300.9,3299.9,0.13529638]
[1768560075546,0.85804815,3301.1,3299.9,0.13529638]
[1768560075746,1.37730414,3301.0,3299.9,0.13529638]
[1768560075948,1.37730414,3300.9,3299.9,0.13529638]
[1768560076147,0.86142989,3301.1,3299.9,0.13529638]
[1768560076347,1.37717852,3301.0,3299.9,0.13529638]
[1768560076647,0.00338174,3301.1,3299.9,0.13529638]
[1768560076845,0.42238388,3301.0,3300.1,0.99334453]
[1768560077050,0.00338174,3301.1,3300.1,0.99334453]
[1768560078055,0.00338174,3301.1,3300.1,0.13529638]
[1768560079954,0.00338174,3301.1,3299.8,0.86175673]
[1768560079955,0.85804815,3300.2,3299.8,0.00370858]
[1768560080150,0.85804815,3299.9,3299.4,0.00454594]
[1768560080348,0.85804815,3299.9,3298.9,0.13529638]
[1768560080749,0.85804815,3300.2,3298.9,0.13529638]
[1768560081157,0.85804815,3300.2,3298.9,0.13840657]
[1768560083353,0.00454594,3300.3,3298.9,0.13840657]
[1768560083560,1.37563733,3300.2,3298.9,0.13840657]
[1768560083858,0.00454594,3300.3,3298.9,0.13840657]
[1768560084058,1.37563613,3300.2,3298.9,0.13840657]
[1768560084258,0.00454594,3300.3,3298.9,0.13840657]
[1768560084557,1.37580457,3300.2,3298.9,0.13840657]
[1768560084761,0.00454594,3300.3,3298.9,0.13840657]
[1768560084957,1.37580236,3300.2,3298.9,0.13840657]
[1768560085159,0.00454594,3300.3,3298.9,0.13840657]
[1768560085359,1.37588527,3300.2,3298.9,0.13840657]
[1768560085658,1.37588527,3300.1,3298.9,0.13840657]
[1768560085858,0.00454594,3300.3,3298.9,0.13840657]
[1768560086060,1.37596766,3300.2,3298.9,0.13840657]
[1768560086261,1.37600476,3300.1,3298.9,0.13840657]
[1768560086462,0.00454594,3300.3,3298.9,0.13840657]
[1768560086658,1.37602412,3300.2,3298.9,0.13840657]
[1768560086856,1.37602412,3300.1,3298.9,0.13840657]
[1768560087062,0.00454594,3300.3,3298.9,0.13840657]
[1768560087260,1.37604857,3300.2,3298.9,0.13840657]
[1768560087465,0.00454594,3300.3,3298.9,0.13840657]
[1768560087466,1.37604857,3300.1,3298.9,0.13840657]
[1768560087663,0.00454594,3300.3,3298.9,0.13840657]
[1768560087865,1.37608418,3300.2,3298.9,0.13840657]
[1768560088058,1.37608418,3300.1,3298.9,0.13840657]
[1768560088257,1.37599832,3300.0,3298.9,0.13840657]
[1768560088454,0.00454594,3300.3,3298.9,0.13840657]
[1768560088658,1.37600553,3300.2,3298.9,0.13840657]
[1768560088852,1.37600553,3300.1,3298.9,0.13840657]
[1768560089054,1.37600553,3300.0,3298.9,0.13840657]
[1768560089258,0.00454594,3300.3,3298.9,0.13840657]
[1768560089459,1.37602622,3300.2,3298.9,0.13840657]
[1768560089659,1.37602622,3300.1,3298.9,0.13840657]
[1768560089965,0.00454594,3300.3,3298.9,0.13840657]
[1768560090156,1.37608954,3300.2,3298.9,0.13840657]
[1768560090359,1.37608954,3300.1,3298.9,0.13840657]
[1768560090567,0.00454594,3300.3,3298.9,0.13840657]